bitfinex/quotes_BTCUSD_20250601
["timestamp","ask_amount","ask_price","bid_price","bid_amount"]
[1748800817632,0.38592795,105110.0,105100.0,0.88274636]
[1748800817838,0.38592795,105110.0,105100.0,0.86491439]
[1748800818065,0.38592795,105110.0,105100.0,0.88274622]
[1748800818274,0.40242795,105110.0,105100.0,0.59042622]
[1748800818486,0.40242786,105110.0,105100.0,0.84481668]
[1748800818690,0.40242841,105110.0,105100.0,0.84481668]
[1748800818892,0.38592841,105110.0,105100.0,0.84481666]
[1748800819095,0.38592841,105110.0,105100.0,0.84481684]
[1748800819303,0.38592841,105110.0,105100.0,0.55253684]
[1748800819542,0.38592841,105110.0,105100.0,0.52519091]
[1748800819729,0.37641521,105110.0,105100.0,0.8448169]
[1748800820154,0.37641521,105110.0,105100.0,0.84481694]
[1748800820365,0.37641521,105110.0,105100.0,0.84481706]
[1748800821104,0.37641521,105110.0,105100.0,0.84481723]
[1748800821313,0.37641521,105110.0,105100.0,0.84481729]
[1748800821528,0.37641521,105110.0,105100.0,0.83590125]
[1748800821749,0.37641521,105110.0,105100.0,0.84481729]
[1748800822162,0.37641521,105110.0,105100.0,0.81138213]
[1748800822370,0.37641521,105110.0,105100.0,0.84481731]
[1748800823866,0.37641521,105110.0,105100.0,0.84481753]
[1748800824076,0.37641521,105110.0,105100.0,0.8381305]
[1748800824288,0.37641521,105110.0,105100.0,0.84481759]
[1748800824490,0.37641521,105110.0,105100.0,0.84481765]
[1748800824899,0.37641521,105110.0,105100.0,0.84481767]
[1748800825115,0.37641521,105110.0,105100.0,0.84481773]
[1748800825733,0.37641521,105110.0,105100.0,0.84481819]
[1748800826356,0.38592896,105110.0,105100.0,0.86042183]
[1748800826566,0.38592896,105110.0,105100.0,0.86265095]
[1748800826772,0.38592896,105110.0,105100.0,0.8559637]
[1748800826979,0.38592896,105110.0,105100.0,0.86265095]
[1748800827395,0.38592896,105110.0,105100.0,0.85596402]
[1748800827610,0.38592896,105110.0,105100.0,0.86265135]
[1748800827817,0.36690155,105110.0,105100.0,0.8292147]
[1748800828028,0.37641521,105110.0,105100.0,0.86265143]
[1748800828291,0.37641521,105110.0,105100.0,0.85373497]
[1748800828490,0.37641521,105110.0,105100.0,0.80470658]
[1748800828698,0.37641521,105110.0,105100.0,0.81362309]
[1748800828905,0.37641521,105110.0,105100.0,0.83145611]
[1748800829543,0.36690155,105110.0,105100.0,0.83145611]
[1748800829752,0.37641521,105110.0,105100.0,0.83145616]
[1748800829958,0.37641521,105110.0,105100.0,0.83145614]
[1748800830164,0.37641521,105110.0,105100.0,0.83145607]
[1748800830371,0.36690155,105110.0,105100.0,0.84735607]
[1748800830801,0.36690155,105110.0,105100.0,0.83843953]
[1748800830982,0.36690155,105110.0,105100.0,0.847356]
[1748800831216,0.36690155,105110.0,105100.0,0.84735598]
[1748800831402,0.36690155,105110.0,105100.0,0.8473563]
[1748800831641,0.35738798,105110.0,105100.0,0.82283608]
[1748800831848,0.35738752,105110.0,105100.0,0.86355752]
[1748800832054,0.37641466,105110.0,105100.0,0.88139127]
[1748800832259,0.37641466,105110.0,105100.0,0.88139121]
[1748800832461,0.37641466,105110.0,105100.0,0.86355743]
[1748800832670,0.366901,105110.0,105100.0,0.86355677]
[1748800832897,0.37641466,105110.0,105100.0,0.83903606]
[1748800833104,0.37641466,105110.0,105100.0,0.83145653]
[1748800833314,0.37641466,105110.0,105100.0,0.83145757]
[1748800833521,0.37641466,105110.0,105100.0,0.80693609]
[1748800833725,0.37641466,105110.0,105100.0,0.8314576]
[1748800834126,0.37641466,105110.0,105100.0,0.83145736]
[1748800834332,0.38592841,105110.0,105100.0,0.83145736]
[1748800834533,0.38592841,105110.0,105100.0,0.8314567]
[1748800834668,0.38592841,105110.0,105100.0,0.8247692]
[1748800834871,0.38592841,105110.0,105100.0,0.81585253]
[1748800835099,0.37641466,105110.0,105100.0,0.82254]
[1748800835299,0.37641466,105110.0,105100.0,0.80470665]
[1748800835630,0.37641466,105110.0,105100.0,0.85374835]
[1748800835794,0.37641466,105110.0,105100.0,0.86266502]
[1748800835972,0.37641466,105110.0,105100.0,0.86935252]
[1748800836649,0.37641466,105110.0,105100.0,0.86043585]
[1748800836868,0.37641466,105110.0,105100.0,0.86935198]
[1748800837274,0.37641466,105110.0,105100.0,0.86935196]
[1748800837454,0.37641457,105110.0,105100.0,0.86935196]
[1748800838112,0.37641457,105110.0,105100.0,0.85983788]
[1748800838313,0.40202823,105110.0,105100.0,0.86043511]
[1748800838494,0.40202823,105110.0,105100.0,0.84706151]
[1748800838651,0.40202823,105110.0,105100.0,0.86266549]
[1748800838855,0.40202823,105110.0,105100.0,0.84483236]
[1748800839057,0.40202823,105110.0,105100.0,0.86266542]
[1748800839263,0.40202823,105110.0,105100.0,0.86266525]
[1748800839632,0.40202823,105110.0,105100.0,0.86266511]
[1748800840484,0.37641466,105110.0,105100.0,0.86266511]
[1748800840690,0.37641466,105110.0,105100.0,0.85374859]
[1748800840894,0.37641466,105110.0,105100.0,0.862665]
[1748800841119,0.37641466,105110.0,105100.0,0.85597768]
[1748800841324,0.37641466,105110.0,105100.0,0.86266491]
[1748800841749,0.37641466,105110.0,105100.0,0.86266481]
[1748800841957,0.37641466,105110.0,105100.0,0.86266472]
[1748800843213,0.37641466,105110.0,105100.0,0.86266464]
[1748800843616,0.366901,105110.0,105100.0,0.86266464]
[1748800843820,0.37641457,105110.0,105100.0,0.84483194]
[1748800843998,0.38611764,105110.0,105100.0,0.86266458]
[1748800844432,0.38611764,105110.0,105100.0,0.86266454]
[1748800844638,0.3956313,105110.0,105100.0,0.86266454]
[1748800844826,0.3956313,105110.0,105100.0,0.86266449]
[1748800845236,0.38611764,105110.0,105100.0,0.82922838]
[1748800845461,0.38611764,105110.0,105100.0,0.83591561]
[1748800845637,0.58590897,105110.0,105100.0,0.82803277]
[1748800845837,0.40221828,105110.0,105100.0,0.85315053]
[1748800846454,0.40221828,105110.0,105100.0,0.85315058]
[1748800846879,0.40221828,105110.0,105100.0,0.85315081]
[1748800847084,0.40221828,105110.0,105100.0,0.85315083]
[1748800847491,0.40221828,105110.0,105100.0,0.56087083]
[1748800847696,0.40221828,105110.0,105100.0,0.85315082]
[1748800848026,0.40221828,105110.0,105100.0,0.85315086]
[1748800848437,0.40221828,105110.0,105100.0,0.83754706]
[1748800848650,0.42673203,105110.0,105100.0,0.84363679]
[1748800848852,0.42673203,105110.0,105100.0,0.85315094]
[1748800849266,0.40221828,105110.0,105100.0,0.85315094]
[1748800849475,0.39251521,105110.0,105100.0,0.85315094]
[1748800849662,0.39251521,105110.0,105100.0,0.81971413]
[1748800849837,0.39251521,105110.0,105100.0,0.84646395]
[1748800850042,0.37641521,105110.0,105100.0,0.83531819]
[1748800850246,0.37641521,105110.0,105100.0,0.81971413]
[1748800850450,0.37641521,105110.0,105100.0,0.85315141]
[1748800850627,0.37641521,105110.0,105100.0,0.8531514]
[1748800851041,0.37641521,105110.0,105100.0,0.83531819]
[1748800851268,0.37641521,105110.0,105100.0,0.85315148]
[1748800851614,0.35738798,105110.0,105100.0,0.85315162]
[1748800851834,0.36690164,105110.0,105100.0,0.85315154]
[1748800852039,0.36690164,105110.0,105100.0,0.8442349]
[1748800852242,0.36690164,105110.0,105100.0,0.85315158]
[1748800852456,0.36690164,105110.0,105100.0,0.56087177]
[1748800852659,0.35738798,105110.0,105100.0,0.85315177]
[1748800852871,0.36690164,105110.0,105100.0,0.85315177]
[1748800853143,0.36690164,105110.0,105100.0,0.85315178]
[1748800853346,0.36690155,105110.0,105100.0,0.85315191]
[1748800853567,0.36690155,105110.0,105100.0,0.85315187]
[1748800853985,0.3764153,105110.0,105100.0,0.85315187]
[1748800854192,0.36690155,105110.0,105100.0,0.56087187]
[1748800854407,0.37641521,105110.0,105100.0,0.84423522]
[1748800854618,0.37641521,105110.0,105100.0,0.85315212]
[1748800854844,0.37641521,105110.0,105100.0,0.85315205]
[1748800855053,0.37641521,105110.0,105100.0,0.81971413]
[1748800855259,0.37641521,105110.0,105100.0,0.85315231]
[1748800855673,0.37641521,105110.0,105100.0,0.85315238]
[1748800855887,0.37641521,105110.0,105100.0,0.85315248]
[1748800856296,0.37641521,105110.0,105100.0,0.85315267]
[1748800856903,0.37641521,105110.0,105100.0,0.85315271]
[1748800857193,0.37641521,105110.0,105100.0,0.85315289]
[1748800857405,0.37641521,105110.0,105100.0,0.85315288]
[1748800857936,0.37641521,105110.0,105100.0,0.84646542]
[1748800858148,0.37641521,105110.0,105100.0,0.85315324]
[1748800858558,0.37641521,105110.0,105100.0,0.84646527]
[1748800858763,0.37641521,105110.0,105100.0,0.84646528]
[1748800858969,0.37641521,105110.0,105100.0,0.84646531]
[1748800859174,0.56669206,105110.0,105100.0,0.53515702]
[1748800859380,0.58299206,105110.0,105100.0,0.83695122]
[1748800859829,0.58299206,105110.0,105100.0,0.83695124]
[1748800860039,0.39271521,105110.0,105100.0,0.84646535]
[1748800860247,0.58299206,105110.0,105100.0,0.55418542]
[1748800860420,0.5925059,105110.0,105100.0,0.84646542]
[1748800860645,0.59909261,105110.0,105100.0,0.83695139]
[1748800861217,0.58006556,105110.0,105100.0,0.32583341]
[1748800861423,0.58006556,105110.0,105100.0,0.6051629]
[1748800861623,0.58006556,105110.0,105100.0,0.3307186]
[1748800861624,0.59460641,105110.0,105100.0,0.3307186]
[1748800861835,0.59460641,105110.0,105100.0,0.62299862]
[1748800862038,0.59460641,105110.0,105100.0,0.33071862]
[1748800862355,0.59460641,105110.0,105100.0,0.62299862]
[1748800862547,0.59460641,105110.0,105100.0,0.62968696]
[1748800862749,0.59460641,105110.0,105100.0,0.62967641]
[1748800863321,0.59460641,105110.0,105100.0,0.62967642]
[1748800864353,0.59460641,105110.0,105100.0,0.62075734]
[1748800864564,0.59460641,105110.0,105100.0,0.62967062]
[1748800864774,0.59460641,105110.0,105100.0,0.62967058]
[1748800864958,0.59460641,105110.0,105100.0,0.35521727]
[1748800865199,0.59460641,105110.0,105100.0,0.62966938]
[1748800865403,0.59460641,105110.0,105100.0,0.6296663]
[1748800865606,0.59460641,105110.0,105100.0,0.62966629]
[1748800865996,0.59460641,105110.0,105100.0,0.62075389]
[1748800866224,0.59460641,105110.0,105100.0,0.62966601]
[1748800866657,0.59460641,105110.0,105100.0,0.62075392]
[1748800866856,0.59460641,105110.0,105100.0,0.62478308]
[1748800867062,0.59460641,105110.0,105100.0,0.6247831]
[1748800867880,0.59460641,105110.0,105100.0,0.63429378]
[1748800868088,0.59460641,105110.0,105100.0,0.63429172]
[1748800868312,0.59460641,105110.0,105100.0,0.63429167]
[1748800868519,0.59460641,105110.0,105100.0,0.59639293]
[1748800868725,0.59460641,105110.0,105100.0,0.58970884]
[1748800868867,0.59460641,105110.0,105100.0,0.59639147]
[1748800869079,0.59460641,105110.0,105100.0,0.58970884]
[1748800869279,0.59460641,105110.0,105100.0,0.59638602]
[1748800869504,0.59460641,105110.0,105100.0,0.5874773]
[1748800869718,0.59460641,105110.0,105100.0,0.59638603]
[1748800869919,0.59460641,105110.0,105100.0,0.59638472]
[1748800870120,0.59460641,105110.0,105100.0,0.56965947]
[1748800870326,0.59460641,105110.0,105100.0,0.56297864]
[1748800870526,0.59460641,105110.0,105100.0,0.75327359]
[1748800870977,0.59460641,105110.0,105100.0,0.77108906]
[1748800871185,0.59460641,105110.0,105100.0,0.78667724]
[1748800871391,0.58509275,105110.0,105100.0,0.59638229]
[1748800871595,0.58509275,105110.0,105100.0,0.59638231]
[1748800871799,0.58509275,105110.0,105100.0,0.58079394]
[1748800872025,0.58509275,105110.0,105100.0,0.59638233]
[1748800872235,0.58509275,105110.0,105100.0,0.58686759]
[1748800872457,0.68094705,105110.0,105100.0,0.58686758]
[1748800872673,0.68094705,105110.0,105100.0,0.58686756]
[1748800873316,0.68094705,105110.0,105100.0,0.5868668]
[1748800873947,0.68094705,105110.0,105100.0,0.58686279]
[1748800874368,0.68094705,105110.0,105100.0,0.5868627]
[1748800874608,0.68094705,105110.0,105100.0,0.58686269]
[1748800874817,0.68094705,105110.0,105100.0,0.57127663]
[1748800875027,0.68094705,105110.0,105100.0,0.58686204]
[1748800875237,0.68094705,105110.0,105100.0,0.58686121]
[1748800875652,0.68094705,105110.0,105100.0,0.58018175]
[1748800875895,0.68094705,105110.0,105100.0,0.58686121]
[1748800876729,0.68094705,105110.0,105100.0,0.58686094]
[1748800877436,0.68094705,105110.0,105100.0,0.58686058]
[1748800877641,0.68094705,105110.0,105100.0,0.58685986]
[1748800877851,0.68094705,105110.0,105100.0,0.5868598]
[1748800878262,0.68094705,105110.0,105100.0,0.58685899]
[1748800878694,0.68094705,105110.0,105100.0,0.55341708]
[1748800878888,0.68094705,105110.0,105100.0,0.54673786]
[1748800879094,0.68094705,105110.0,105100.0,0.55341682]
[1748800879269,0.68094705,105110.0,105100.0,0.53560611]
[1748800879487,0.68094705,105110.0,105100.0,0.55341654]
[1748800880215,0.68094705,105110.0,105100.0,0.53783241]
[1748800880423,0.68094705,105110.0,105100.0,0.55341653]
[1748800880633,0.68094705,105110.0,105100.0,0.54673762]
[1748800880838,0.68094705,105110.0,105100.0,0.55341652]
[1748800881245,0.68094705,105110.0,105100.0,0.52670089]
[1748800881453,0.68094705,105110.0,105100.0,0.55341691]
[1748800881797,0.68094705,105110.0,105100.0,0.55341712]
[1748800882011,0.68094705,105110.0,105100.0,0.55341796]
[1748800882229,0.68094705,105110.0,105100.0,0.53560677]
[1748800882430,0.68094705,105110.0,105100.0,0.53783318]
[1748800882802,0.68094705,105110.0,105100.0,0.25445877]
[1748800883109,0.68094705,105110.0,105100.0,0.57791099]
[1748800883272,0.68094705,105110.0,105100.0,0.56009888]
[1748800883482,0.68094705,105110.0,105100.0,0.56009907]
[1748800883639,0.68094705,105110.0,105100.0,0.56009914]
[1748800883863,0.68094705,105110.0,105100.0,0.5356077]
[1748800884059,0.68094705,105110.0,105100.0,0.56678068]
[1748800884265,0.68094705,105110.0,105100.0,0.56010074]
[1748800884470,0.68094705,105110.0,105100.0,0.56678065]
[1748800884688,0.68094705,105110.0,105100.0,0.56678183]
[1748800884895,0.68094705,105110.0,105100.0,0.56678226]
[1748800885490,0.68094705,105110.0,105100.0,0.24778144]
[1748800885695,0.68094705,105110.0,105100.0,0.56678355]
[1748800885896,0.68094705,105110.0,105100.0,0.58460119]
[1748800886129,0.68094705,105110.0,105100.0,0.5667855]
[1748800886532,0.68094705,105110.0,105100.0,0.56678558]
[1748800887352,0.68094705,105110.0,105100.0,0.2745087]
[1748800887561,0.68094705,105110.0,105100.0,0.56010816]
[1748800887768,0.68094705,105110.0,105100.0,0.57347667]
[1748800887977,0.68094705,105110.0,105100.0,0.5734768]
[1748800888593,0.68094705,105110.0,105100.0,0.52888857]
[1748800888810,0.68094705,105110.0,105100.0,0.52888783]
[1748800889842,0.68094705,105110.0,105100.0,0.23660783]
[1748800890063,5.42095347,105110.0,105100.0,0.20319476]
[1748800890281,5.71323347,105110.0,105100.0,0.20319476]
[1748800890497,5.80760121,105110.0,105100.0,0.20015009]
[1748800890703,5.80760121,105110.0,105100.0,0.19815009]
[1748800890704,5.80758953,105110.0,105100.0,0.19815009]
[1748800891177,5.80758953,105110.0,105100.0,0.19915009]
[1748800891808,5.74181047,105110.0,105100.0,0.19915009]
[1748800892016,5.74181047,105110.0,105100.0,0.19615009]
[1748800892222,5.74181047,105110.0,105100.0,0.19815009]
[1748800893007,5.65376005,105110.0,105100.0,0.19815009]
[1748800893989,5.65376005,105110.0,105100.0,0.19715009]
[1748800894327,5.67776005,105110.0,105100.0,0.19815009]
[1748800897592,5.79343456,105110.0,105100.0,0.19815009]
[1748800897805,6.06986577,105110.0,105100.0,0.19815009]
[1748800898024,6.1359392,105110.0,105100.0,0.17583931]
[1748800898442,6.19090678,105110.0,105100.0,0.17583931]
[1748800898706,6.12890678,105110.0,105100.0,0.17483931]
[1748800898931,6.14390678,105110.0,105100.0,0.17583931]
[1748800899959,6.18190678,105110.0,105100.0,0.17483931]
[1748800900165,6.13190678,105110.0,105100.0,0.17483931]
[1748800900371,6.13690678,105110.0,105100.0,0.17383931]
[1748800900615,6.15790678,105110.0,105100.0,0.17383931]
[1748800900818,6.20790678,105110.0,105100.0,0.17383931]
[1748800901023,6.15790678,105110.0,105100.0,0.17383931]
[1748800901770,5.38315556,105110.0,105100.0,0.17383931]
[1748800901981,5.71384763,105110.0,105100.0,0.17383931]
[1748800902614,5.76384763,105110.0,105100.0,0.17383931]
[1748800902821,5.71384763,105110.0,105100.0,0.17383931]
[1748800905109,5.40888763,105110.0,105100.0,0.17383931]
[1748800905330,5.70396763,105110.0,105100.0,0.17383931]
[1748800905965,5.79647885,105110.0,105100.0,0.17383931]
[1748800907997,5.50139885,105110.0,105100.0,0.17383931]
[1748800908193,5.70372763,105110.0,105100.0,0.17383931]
[1748800909396,5.80382763,105110.0,105100.0,0.17383931]
[1748800909599,5.70372763,105110.0,105100.0,0.17383931]
[1748800917705,5.71372763,105110.0,105100.0,0.17383931]
[1748800917863,5.80623885,105110.0,105100.0,0.17383931]
[1748800918821,5.80623885,105110.0,105100.0,0.15600337]
[1748800920929,6.14623885,105110.0,105100.0,0.15600337]
[1748800921269,6.14623885,105110.0,105100.0,0.0665897]
[1748800921510,6.14623885,105110.0,105100.0,0.01900769]
[1748800921714,6.14623885,105110.0,105100.0,0.00772144]
[1748800922153,4.92102847,105080.0,105070.0,0.00048636]
[1748800922362,5.36224262,105080.0,105070.0,0.00048636]
[1748800922591,5.36224262,105080.0,105070.0,0.0035321]
[1748800922970,5.36891498,105080.0,105070.0,0.0035321]
[1748800923389,5.36991498,105080.0,105070.0,0.0045321]
[1748800923590,5.38545475,105080.0,105070.0,0.0055321]
[1748800923716,5.41685475,105080.0,105070.0,0.0055321]
[1748800923942,5.44544077,105080.0,105070.0,0.0055321]
[1748800924143,5.43876947,105080.0,105070.0,0.0055321]
[1748800924344,5.42316947,105080.0,105070.0,0.0055321]
[1748800924544,5.44841294,105080.0,105070.0,0.0055321]
[1748800924744,5.44174164,105080.0,105070.0,0.0055321]
[1748800924939,5.44174164,105080.0,105070.0,0.00248636]
[1748800925143,5.44841189,105080.0,105070.0,0.00248636]
[1748800925787,5.44841108,105080.0,105070.0,0.00248636]
[1748800925945,5.44841113,105080.0,105070.0,0.00248636]
[1748800926952,5.38631703,105080.0,105070.0,0.00248636]
[1748800927166,5.38631706,105080.0,105070.0,0.00248636]
[1748800927366,5.37964826,105080.0,105070.0,0.00248636]
[1748800927655,5.38631706,105080.0,105070.0,0.00248636]
[1748800928474,5.38631615,105080.0,105070.0,0.00248636]
[1748800928678,5.47882674,105080.0,105070.0,0.00248636]
[1748800928881,5.47215948,105080.0,105070.0,0.00248636]
[1748800929162,5.47882674,105080.0,105070.0,0.00248636]
[1748800930117,5.47882657,105080.0,105070.0,0.00248636]
[1748800930966,5.47882588,105080.0,105070.0,0.00248636]
[1748800931164,5.47882567,105080.0,105070.0,0.00248636]
[1748800932029,5.4788256,105080.0,105070.0,0.00248636]
[1748800932233,5.50129172,105080.0,105070.0,0.00248636]
[1748800932435,5.48795948,105080.0,105070.0,0.00248636]
[1748800932638,5.5012918,105080.0,105070.0,0.00248636]
[1748800932847,5.49462564,105080.0,105070.0,0.00248636]
[1748800933072,5.5012912,105080.0,105070.0,0.00248636]
[1748800933479,5.50129093,105080.0,105070.0,0.00248636]
[1748800933674,5.49462564,105080.0,105070.0,0.00248636]
[1748800934006,5.50129021,105080.0,105070.0,0.00248636]
[1748800934391,5.50129022,105080.0,105070.0,0.00248636]
[1748800934599,5.49462564,105080.0,105070.0,0.00248636]
[1748800934822,5.50128992,105080.0,105070.0,0.00248636]
[1748800935033,5.48548992,105080.0,105070.0,0.00248636]
[1748800935239,5.48548979,105080.0,105070.0,0.00248636]
[1748800935692,5.48548981,105080.0,105070.0,0.00248636]
[1748800935897,5.48548945,105080.0,105070.0,0.00248636]
[1748800936099,5.50118945,105080.0,105070.0,0.00248636]
[1748800936776,5.39297904,105080.0,105070.0,0.00248636]
[1748800937209,5.39297897,105080.0,105070.0,0.00248636]
[1748800937632,5.39297898,105080.0,105070.0,0.00248636]
[1748800938259,5.39297884,105080.0,105070.0,0.00248636]
[1748800939739,5.39297903,105080.0,105070.0,0.00248636]
[1748800939919,5.48549062,105080.0,105070.0,0.00248636]
[1748800940149,5.48549072,105080.0,105070.0,0.00248636]
[1748800941050,5.47882564,105080.0,105070.0,0.00248636]
[1748800941255,5.48549126,105080.0,105070.0,0.00248636]
[1748800942112,5.47882564,105080.0,105070.0,0.00248636]
[1748800942316,5.485492,105080.0,105070.0,0.00248636]
[1748800942498,5.48549203,105080.0,105070.0,0.00248636]
[1748800944166,5.48549477,105080.0,105070.0,0.00248636]
[1748800944766,5.48549497,105080.0,105070.0,0.00553235]
[1748800945387,4.57653685,105070.0,105050.0,0.04893641]
[1748800945621,4.57653685,105070.0,105050.0,0.01648501]
[1748800945622,5.11139949,105060.0,105050.0,0.01648501]
[1748800945842,5.11806837,105060.0,105050.0,0.0115341]
[1748800946059,5.11139949,105060.0,105050.0,0.0115341]
[1748800946270,5.20725379,105060.0,105050.0,0.0440341]
[1748800946473,5.248452,105060.0,105050.0,0.0440341]
[1748800946697,5.20725379,105060.0,105050.0,0.0460341]
[1748800947123,5.20725379,105060.0,105050.0,0.0440341]
[1748800947541,5.20825379,105060.0,105050.0,0.0450341]
[1748800948235,5.30176501,105060.0,105050.0,0.0460341]
[1748800948877,5.31153033,105060.0,105050.0,0.0460341]
[1748800949544,5.21901911,105060.0,105050.0,0.0460341]
[1748800949763,5.23355996,105060.0,105050.0,0.0460341]
[1748800954925,5.23229876,105060.0,105050.0,0.0460341]
[1748800957473,5.23229876,105060.0,105050.0,0.04908045]
[1748800962416,5.23229876,105060.0,105050.0,0.01658045]
[1748800962616,5.35650998,105060.0,105050.0,0.0135341]
[1748800970344,5.26299876,105060.0,105050.0,0.0125341]
[1748800970540,5.27199876,105060.0,105050.0,0.0125341]
[1748800971543,5.27099876,105060.0,105050.0,0.0115341]
[1748800971749,5.27999876,105060.0,105050.0,0.0115341]
[1748800971949,5.30859276,105060.0,105050.0,0.0115341]
[1748800972171,5.71818398,105060.0,105050.0,0.0115341]
[1748800972752,5.71818398,105060.0,105050.0,0.0044341]
[1748800973283,5.72818398,105060.0,105050.0,0.0044341]
[1748800973508,5.79392529,105060.0,105050.0,0.0044341]
[1748800974500,5.79391446,105060.0,105050.0,0.0044341]
[1748800975566,6.09391446,105060.0,105050.0,0.0044341]
[1748800978972,6.09389335,105060.0,105050.0,0.0044341]
[1748800979174,6.09389335,105060.0,105020.0,0.03574689]
[1748800979175,5.12600016,105030.0,105020.0,0.03574689]
[1748800979378,5.12600016,105030.0,105020.0,0.04474945]
[1748800979379,5.22185446,105030.0,105020.0,0.04474945]
[1748800980027,5.22185446,105030.0,105020.0,0.04474951]
[1748800980820,5.22385446,105030.0,105020.0,0.04474951]
[1748800981025,5.31143087,105030.0,105020.0,0.04474951]
[1748800981245,5.31143087,105030.0,105020.0,0.00313927]
[1748800981649,5.31143087,105030.0,105020.0,0.03279238]
[1748800981886,5.22285446,105030.0,105020.0,0.03279238]
[1748800982281,5.22385446,105030.0,105020.0,0.03279238]
[1748800982512,5.22285446,105030.0,105020.0,0.03279238]
[1748800982897,5.22385446,105030.0,105020.0,0.03279238]
[1748800983301,5.31536568,105030.0,105020.0,0.03279238]
[1748800983503,5.31436568,105030.0,105020.0,0.03279238]
[1748800983701,5.31536568,105030.0,105020.0,0.03279238]
[1748800984230,5.31636568,105030.0,105020.0,9.238e-05]
[1748800986888,5.22385446,105030.0,105020.0,9.238e-05]
[1748800988156,5.20931361,105030.0,105020.0,0.03159238]
[1748800988351,0.46641691,105030.0,105020.0,0.24412277]
[1748800988532,0.46641691,105030.0,105020.0,0.03463951]
[1748800988533,0.64731779,105030.0,105020.0,0.03463951]
[1748800988758,0.30731779,105030.0,105020.0,0.03463951]
[1748800988961,0.32185864,105030.0,105020.0,0.04353658]
[1748800989178,0.21146349,105030.0,105020.0,0.55397649]
[1748800989386,0.55146349,105030.0,105020.0,0.57302038]
[1748800989631,0.56098385,105030.0,105020.0,0.25302038]
[1748800989830,0.56098385,105030.0,105020.0,0.04353721]
[1748800989963,0.54194268,105030.0,105020.0,0.0530592]
[1748800990214,0.54194268,105030.0,105020.0,0.3745392]
[1748800990407,0.53242178,105030.0,105020.0,0.3656415]
[1748800990609,0.53242178,105030.0,105020.0,0.37453922]
[1748800991246,0.53242178,105030.0,105020.0,0.37454053]
[1748800991438,0.53242178,105030.0,105020.0,0.36501854]
[1748800991641,0.53242178,105030.0,105020.0,0.37454053]
[1748800991892,0.53242178,105030.0,105020.0,0.36501854]
[1748800992097,0.53242178,105030.0,105020.0,0.56498101]
[1748800992305,0.53242178,105030.0,105020.0,0.55608132]
[1748800992492,0.53242178,105030.0,105020.0,0.564981]
[1748800992846,0.53242178,105030.0,105020.0,0.36501919]
[1748800993058,0.53242178,105030.0,105020.0,0.37454118]
[1748800993249,0.53242178,105030.0,105020.0,0.36501919]
[1748800993672,0.53242178,105030.0,105020.0,0.36502102]
[1748800993876,0.53242178,105030.0,105020.0,0.36502104]
[1748800994100,0.53242178,105030.0,105020.0,0.37454303]
[1748800994476,0.53242178,105030.0,105020.0,0.36502127]
[1748800995023,0.53242178,105030.0,105020.0,0.365021]
[1748800995166,0.53242178,105030.0,105020.0,0.35611922]
[1748800995366,0.53242178,105030.0,105020.0,0.36502101]
[1748800995585,0.64281693,105030.0,105020.0,0.36382101]
[1748800996211,0.64281693,105030.0,105020.0,0.36382211]
[1748800996409,0.64281693,105030.0,105020.0,0.01204211]
[1748800996410,5.28813655,105030.0,105020.0,0.01204211]
[1748800996640,5.28813655,105030.0,105020.0,0.00313922]
[1748800997051,5.20481293,105030.0,105020.0,0.00313922]
[1748801002546,5.20481293,105030.0,105020.0,9.238e-05]
[1748801002547,5.34389293,105030.0,105020.0,9.238e-05]
[1748801003756,5.34289293,105030.0,105020.0,9.238e-05]
[1748801003951,5.67773293,105030.0,105020.0,9.238e-05]
[1748801004117,5.24461293,105030.0,105020.0,9.238e-05]
[1748801004319,5.24461293,105030.0,105000.0,0.05914781]
[1748801004320,5.15894006,105010.0,105000.0,0.05914781]
[1748801004653,5.15894006,105010.0,105000.0,0.05157881]
[1748801004654,6.35187436,105010.0,105000.0,0.05157881]
[1748801004948,6.38048436,105010.0,105000.0,0.01825183]
[1748801005153,5.69480436,105010.0,105000.0,0.01063424]
[1748801005356,5.66190436,105010.0,105000.0,0.01063424]
[1748801005551,5.76922436,105010.0,105000.0,0.01063424]
[1748801005729,5.78522436,105010.0,105000.0,0.01063424]
[1748801006174,5.67090436,105010.0,105000.0,0.01063424]
[1748801006379,5.77822436,105010.0,105000.0,0.01063424]
[1748801006589,5.78722436,105010.0,105000.0,0.01063424]
[1748801006790,5.87973558,105010.0,105000.0,0.01063424]
[1748801007133,5.87973558,105010.0,105000.0,0.00301665]
[1748801007134,5.91263558,105010.0,105000.0,0.00301665]
[1748801007541,5.11153912,104990.0,104980.0,0.51814825]
[1748801007739,5.2244374,104990.0,104980.0,0.5000486]
[1748801008759,5.2264374,104990.0,104980.0,0.5000486]
[1748801010421,5.2264374,104990.0,104980.0,0.5319486]
[1748801011466,5.31894862,104990.0,104980.0,0.5159486]
[1748801011690,5.31894862,104990.0,104980.0,0.5000486]
[1748801012454,5.33348947,104990.0,104980.0,0.5000486]
[1748801012864,5.24097825,104990.0,104980.0,0.5000486]
[1748801013291,5.27287825,104990.0,104980.0,0.49242837]
[1748801013500,5.32287825,104990.0,104980.0,0.49242837]
[1748801013705,5.32287825,104990.0,104980.0,0.48480713]
[1748801013917,5.36538947,104990.0,104980.0,0.48480713]
[1748801014115,5.41538947,104990.0,104980.0,0.47718589]
[1748801014325,5.41438947,104990.0,104980.0,0.47718589]
[1748801014528,5.42338947,104990.0,104980.0,0.46956465]
[1748801014737,5.43338947,104990.0,104980.0,0.46956465]
[1748801014943,5.40200447,104990.0,104980.0,0.46194341]
[1748801015155,5.47100447,104990.0,104980.0,0.46194341]
[1748801015367,5.47100447,104990.0,104980.0,0.45432217]
[1748801015588,5.43100447,104990.0,104980.0,0.45432217]
[1748801015791,5.43100447,104990.0,104980.0,0.42807493]
[1748801015792,5.48100447,104990.0,104980.0,0.42807493]
[1748801015997,5.47100447,104990.0,104980.0,0.42045369]
[1748801016415,5.79000447,104990.0,104980.0,0.41283245]
[1748801016836,5.68749325,104990.0,104980.0,0.41283245]
[1748801017043,5.68749325,104990.0,104980.0,0.40521121]
[1748801017427,5.68749325,104990.0,104980.0,0.39758997]
[1748801017860,5.68749325,104990.0,104980.0,0.38996873]
[1748801018064,5.68749325,104990.0,104980.0,0.38234749]
[1748801018471,5.69698922,104990.0,104980.0,0.37472625]
[1748801018885,5.69698922,104990.0,104980.0,0.3671046]
[1748801019387,5.70195716,104990.0,104980.0,0.35948295]
[1748801019565,6.04631716,104990.0,104980.0,0.35948295]
[1748801019936,6.13882838,104990.0,104980.0,0.3518613]
[1748801020141,6.08882838,104990.0,104980.0,0.3518613]
[1748801020317,6.13882838,104990.0,104980.0,0.3518613]
[1748801020684,6.04631716,104990.0,104980.0,0.3518613]
[1748801021479,5.99631716,104990.0,104980.0,0.3518613]
[1748801021695,6.04631716,104990.0,104980.0,0.3518613]
[1748801023370,5.99631716,104990.0,104980.0,0.3518613]
[1748801024017,6.04631716,104990.0,104980.0,0.3518613]
[1748801024238,0.56414386,104960.0,104950.0,0.04007837]
[1748801024449,5.22199416,104960.0,104950.0,0.04056614]
[1748801024664,5.22199416,104960.0,104950.0,0.02496614]
[1748801024882,5.22199416,104960.0,104950.0,0.00234449]
[1748801025302,5.10209109,104950.0,104940.0,0.389]